[Event "Early-Titled-Tuesday-Blitz-May-14-2024"]
[Site "Chess.com"]
[Date "2024.05.14"]
[Round "3"]
[White "Lennis93"]
[Black "Firouzja2003"]
[Result "1-0"]
[WhiteElo "2808"]
[BlackElo "3180"]
[TimeControl "180+1"]
[EndTime "8:29:29 PDT"]
[Termination "Lennis93 won by resignation"]

1. d4 {[%clk 0:03:00.9]} 1... Nf6 {[%clk 0:02:59.6]} 2. Nf3 {[%clk 0:02:59.9]}
2... g6 {[%clk 0:02:59.8]} 3. c4 {[%clk 0:03:00.7]} 3... Bg7 {[%clk 0:03:00.3]}
4. Nc3 {[%clk 0:03:01.3]} 4... O-O {[%clk 0:03:00.6]} 5. e4 {[%clk 0:03:02]}
5... d6 {[%clk 0:03:01.3]} 6. Bd3 {[%clk 0:03:02.5]} 6... e5 {[%clk 0:03:01.3]}
7. d5 {[%clk 0:03:02.6]} 7... a5 {[%clk 0:03:00.3]} 8. h3 {[%clk 0:03:03.2]}
8... Na6 {[%clk 0:03:00.7]} 9. Be3 {[%clk 0:03:02]} 9... Nh5 {[%clk 0:03:00]}
10. g3 {[%clk 0:03:02]} 10... Qe8 {[%clk 0:02:59.4]} 11. Nh4 {[%clk 0:03:00.8]}
11... Bd7 {[%clk 0:02:53.1]} 12. Be2 {[%clk 0:02:59.8]} 12... Nf6 {[%clk
0:02:52.2]} 13. g4 {[%clk 0:02:54.3]} 13... Nc5 {[%clk 0:02:51.9]} 14. Qc2
{[%clk 0:02:41.6]} 14... Qe7 {[%clk 0:02:39.5]} 15. Ng2 {[%clk 0:02:15.8]} 15...
h6 {[%clk 0:02:27]} 16. g5 {[%clk 0:02:04.9]} 16... hxg5 {[%clk 0:02:20.8]} 17.
Bxg5 {[%clk 0:02:05.8]} 17... Qe8 {[%clk 0:02:21.2]} 18. h4 {[%clk 0:02:00.9]}
18... Nh7 {[%clk 0:02:20.2]} 19. Be3 {[%clk 0:01:59.7]} 19... f5 {[%clk
0:02:05.5]} 20. Bxc5 {[%clk 0:01:33.4]} 20... dxc5 {[%clk 0:02:05.7]} 21. h5
{[%clk 0:01:27]} 21... Ng5 {[%clk 0:01:57.2]} 22. Nh4 {[%clk 0:01:21.8]} 22...
fxe4 {[%clk 0:01:52.6]} 23. hxg6 {[%clk 0:01:13.1]} 23... a4 {[%clk 0:01:26]}
24. a3 {[%clk 0:00:58.8]} 24... Rf4 {[%clk 0:01:23]} 25. Ng2 {[%clk 0:00:57.7]}
25... Qxg6 {[%clk 0:01:23.3]} 26. Nxf4 {[%clk 0:00:56.9]} 26... exf4 {[%clk
0:01:24.2]} 27. Bh5 {[%clk 0:00:47.1]} 27... Qf6 {[%clk 0:01:18.4]} 28. O-O-O
{[%clk 0:00:45.8]} 28... Bf5 {[%clk 0:01:18.7]} 29. Rdg1 {[%clk 0:00:37]} 29...
Rf8 {[%clk 0:01:02.3]} 30. Bg4 {[%clk 0:00:36.5]} 30... e3 {[%clk 0:00:41.3]}
31. Bxf5 {[%clk 0:00:35.7]} 31... Qxf5 {[%clk 0:00:42.2]} 32. fxe3 {[%clk
0:00:16.3]} 32... fxe3 {[%clk 0:00:41.9]} 33. Qxf5 {[%clk 0:00:15.4]} 33... Rxf5
{[%clk 0:00:42.8]} 34. Rh5 {[%clk 0:00:15]} 34... Bf6 {[%clk 0:00:42.9]} 35. Ne4
{[%clk 0:00:14.1]} 35... e2 {[%clk 0:00:43.6]} 36. Kd2 {[%clk 0:00:13.2]} 36...
Rf1 {[%clk 0:00:43.6]} 37. Rgxg5+ {[%clk 0:00:12.8]} 37... Bxg5+ {[%clk
0:00:34.6]} 38. Rxg5+ {[%clk 0:00:13.7]} 38... Kf7 {[%clk 0:00:35]} 39. Kxe2
{[%clk 0:00:13.9]} 39... Rb1 {[%clk 0:00:35.9]} 40. Nxc5 {[%clk 0:00:13.9]}
40... Rxb2+ {[%clk 0:00:35.6]} 41. Kd3 {[%clk 0:00:14.4]} 41... b6 {[%clk
0:00:36.1]} 42. Nxa4 {[%clk 0:00:13.6]} 42... Rb3+ {[%clk 0:00:36.7]} 43. Nc3
{[%clk 0:00:13.7]} 43... Rxa3 {[%clk 0:00:37.6]} 44. Rh5 {[%clk 0:00:13.1]}
44... Ke7 {[%clk 0:00:37.4]} 45. Rh6 {[%clk 0:00:13.2]} 45... Kd7 {[%clk
0:00:35.3]} 46. Kd4 {[%clk 0:00:13.5]} 46... Ra1 {[%clk 0:00:35.7]} 47. Nb5
{[%clk 0:00:13]} 47... Rd1+ {[%clk 0:00:36.1]} 48. Kc3 {[%clk 0:00:13.2]} 48...
Rc1+ {[%clk 0:00:36.7]} 49. Kb3 {[%clk 0:00:13.5]} 49... Rb1+ {[%clk 0:00:37]}
50. Kc2 {[%clk 0:00:13.8]} 50... Rb4 {[%clk 0:00:37.4]} 51. Rh7+ {[%clk
0:00:13.3]} 51... Kd8 {[%clk 0:00:37.7]} 52. Kc3 {[%clk 0:00:13.4]} 52... Rb1
{[%clk 0:00:38.1]} 53. Nxc7 {[%clk 0:00:12.8]} 53... b5 {[%clk 0:00:38.7]} 54.
Nxb5 {[%clk 0:00:12.4]} 1-0

[Event "Early-Titled-Tuesday-Blitz-May-14-2024"]
[Site "Chess.com"]
[Date "2024.05.14"]
[Round "3"]
[White "Quattroporte300"]
[Black "Sasha_Solovev_777"]
[Result "0-1"]
[WhiteElo "2388"]
[BlackElo "2197"]
[TimeControl "180+1"]
[EndTime "8:29:30 PDT"]
[Termination "Sasha_Solovev_777 won by resignation"]

1. e4 {[%clk 0:02:56.7]} 1... c5 {[%clk 0:02:54]} 2. Nc3 {[%clk 0:02:55.7]} 2...
d6 {[%clk 0:02:47.2]} 3. d4 {[%clk 0:02:54.5]} 3... cxd4 {[%clk 0:02:46.3]} 4.
Qxd4 {[%clk 0:02:55.4]} 4... Nc6 {[%clk 0:02:44.4]} 5. Qd2 {[%clk 0:02:55.7]}
5... Nf6 {[%clk 0:02:41]} 6. b3 {[%clk 0:02:56.3]} 6... g6 {[%clk 0:02:29.6]} 7.
Bb2 {[%clk 0:02:56.7]} 7... Bg7 {[%clk 0:02:30]} 8. O-O-O {[%clk 0:02:56.1]}
8... O-O {[%clk 0:02:26.9]} 9. f3 {[%clk 0:02:56.3]} 9... h5 {[%clk 0:02:19.8]}
10. Kb1 {[%clk 0:02:52.7]} 10... Be6 {[%clk 0:02:10.7]} 11. Nge2 {[%clk
0:02:47.7]} 11... a6 {[%clk 0:01:58.7]} 12. Nf4 {[%clk 0:02:45.8]} 12... b5
{[%clk 0:01:54.4]} 13. Rg1 {[%clk 0:02:31.3]} 13... Qd7 {[%clk 0:01:50.2]} 14.
Ncd5 {[%clk 0:02:25.2]} 14... Bxd5 {[%clk 0:01:42.7]} 15. Nxd5 {[%clk
0:02:23.4]} 15... Nxd5 {[%clk 0:01:33.3]} 16. Qxd5 {[%clk 0:02:16.7]} 16... Ne5
{[%clk 0:01:23.8]} 17. f4 {[%clk 0:02:12.3]} 17... Ng4 {[%clk 0:01:14]} 18. Qd2
{[%clk 0:02:10.2]} 18... Qa7 {[%clk 0:01:00.1]} 19. Bxg7 {[%clk 0:01:58.6]}
19... Kxg7 {[%clk 0:01:01]} 20. Qd4+ {[%clk 0:01:43.9]} 20... Qxd4 {[%clk
0:00:58.5]} 21. Rxd4 {[%clk 0:01:44.8]} 21... Rac8 {[%clk 0:00:58.8]} 22. Be2
{[%clk 0:01:34.1]} 22... Rc3 {[%clk 0:00:48]} 23. Rd3 {[%clk 0:01:26.8]} 23...
Rfc8 {[%clk 0:00:37.1]} 24. Rxc3 {[%clk 0:01:21.5]} 24... Rxc3 {[%clk 0:00:38]}
25. Bxg4 {[%clk 0:01:21.6]} 25... hxg4 {[%clk 0:00:37.7]} 26. Re1 {[%clk
0:01:22.2]} 26... Kf6 {[%clk 0:00:31.6]} 27. Kb2 {[%clk 0:01:22.5]} 27... Rc5
{[%clk 0:00:30]} 28. c3 {[%clk 0:01:12.7]} 28... Rh5 {[%clk 0:00:29.8]} 29. Rh1
{[%clk 0:01:04.8]} 29... e5 {[%clk 0:00:29]} 30. fxe5+ {[%clk 0:00:41]} 30...
Kxe5 {[%clk 0:00:29.9]} 31. Kc2 {[%clk 0:00:39.4]} 31... Kxe4 {[%clk 0:00:29.6]}
32. Kd2 {[%clk 0:00:40.1]} 32... f5 {[%clk 0:00:29.4]} 33. Ke2 {[%clk
0:00:33.9]} 33... f4 {[%clk 0:00:29.6]} 34. a4 {[%clk 0:00:29.3]} 34... bxa4
{[%clk 0:00:27.9]} 35. bxa4 {[%clk 0:00:29.3]} 35... d5 {[%clk 0:00:28.4]} 36.
Rb1 {[%clk 0:00:19.2]} 36... Rxh2 {[%clk 0:00:27.9]} 37. Rb6 {[%clk 0:00:19.6]}
37... Rxg2+ {[%clk 0:00:28]} 38. Kf1 {[%clk 0:00:20.2]} 38... Rc2 {[%clk
0:00:26.9]} 39. Rxa6 {[%clk 0:00:20.2]} 39... Kf3 {[%clk 0:00:26.7]} 40. Ke1
{[%clk 0:00:17.6]} 40... g3 {[%clk 0:00:24.7]} 41. Rxg6 {[%clk 0:00:17.8]} 41...
g2 {[%clk 0:00:24]} 42. a5 {[%clk 0:00:16.8]} 42... Rc1+ {[%clk 0:00:22.2]} 43.
Kd2 {[%clk 0:00:16.7]} 43... g1=Q {[%clk 0:00:22.5]} 44. Rxg1 {[%clk 0:00:15.3]}
44... Rxg1 {[%clk 0:00:23.4]} 0-1

[Event "Early-Titled-Tuesday-Blitz-May-14-2024"]
[Site "Chess.com"]
[Date "2024.05.14"]
[Round "3"]
[White "David_Arutinian"]
[Black "Herzog2012"]
[Result "1-0"]
[WhiteElo "2831"]
[BlackElo "2540"]
[TimeControl "180+1"]
[EndTime "8:29:31 PDT"]
[Termination "David_Arutinian won by checkmate"]

1. Nf3 {[%clk 0:03:00.9]} 1... Nf6 {[%clk 0:02:59.6]} 2. c4 {[%clk 0:03:01]}
2... e6 {[%clk 0:02:59.8]} 3. e3 {[%clk 0:03:00.8]} 3... d5 {[%clk 0:02:58.3]}
4. b3 {[%clk 0:03:01.1]} 4... Be7 {[%clk 0:02:58.3]} 5. Bb2 {[%clk 0:03:01.6]}
5... O-O {[%clk 0:02:59]} 6. Nc3 {[%clk 0:03:02.2]} 6... b6 {[%clk 0:02:56.8]}
7. g3 {[%clk 0:03:01.9]} 7... Bb7 {[%clk 0:02:56.4]} 8. Bg2 {[%clk 0:03:02.5]}
8... c5 {[%clk 0:02:56.1]} 9. O-O {[%clk 0:03:02.5]} 9... Nc6 {[%clk 0:02:46]}
10. cxd5 {[%clk 0:03:02.6]} 10... Nxd5 {[%clk 0:02:45]} 11. Nxd5 {[%clk
0:03:00.6]} 11... Qxd5 {[%clk 0:02:45.9]} 12. d4 {[%clk 0:03:00.5]} 12... Rfd8
{[%clk 0:02:17.4]} 13. Ne5 {[%clk 0:02:54]} 13... Qd6 {[%clk 0:02:15.8]} 14. Qf3
{[%clk 0:02:48.7]} 14... Nxe5 {[%clk 0:01:53.1]} 15. Qxb7 {[%clk 0:02:46.4]}
15... Nd3 {[%clk 0:01:50]} 16. Ba3 {[%clk 0:02:43.8]} 16... Rac8 {[%clk
0:00:58.8]} 17. Qxa7 {[%clk 0:02:38.2]} 17... Qc7 {[%clk 0:00:31.5]} 18. Qa6
{[%clk 0:02:00.9]} 18... Nb4 {[%clk 0:00:21.3]} 19. Bxb4 {[%clk 0:02:00.8]}
19... cxb4 {[%clk 0:00:22.2]} 20. Qb5 {[%clk 0:02:01.4]} 20... Qa7 {[%clk
0:00:10]} 21. Be4 {[%clk 0:01:59.8]} 21... Rc3 {[%clk 0:00:06.5]} 22. Kg2 {[%clk
0:01:55.2]} 22... g6 {[%clk 0:00:06.3]} 23. h4 {[%clk 0:01:55.6]} 23... h5
{[%clk 0:00:06.1]} 24. Rfd1 {[%clk 0:01:51.3]} 24... Qc7 {[%clk 0:00:04.6]} 25.
Bf3 {[%clk 0:01:46.6]} 25... Bf6 {[%clk 0:00:04]} 26. Qxb4 {[%clk 0:01:43.9]}
26... Be7 {[%clk 0:00:02.8]} 27. Qb5 {[%clk 0:01:43.8]} 27... Rc2 {[%clk
0:00:03.2]} 28. a4 {[%clk 0:01:37.6]} 28... Rc8 {[%clk 0:00:02.5]} 29. d5 {[%clk
0:01:36.9]} 29... exd5 {[%clk 0:00:02]} 30. Qxd5 {[%clk 0:01:36.4]} 30... Bf6
{[%clk 0:00:02.2]} 31. Rab1 {[%clk 0:01:35.9]} 31... Qe7 {[%clk 0:00:01.9]} 32.
Rd2 {[%clk 0:01:32.3]} 32... R8c3 {[%clk 0:00:01.6]} 33. Rbd1 {[%clk 0:01:31.2]}
33... Kg7 {[%clk 0:00:01.3]} 34. Rxc2 {[%clk 0:01:29.1]} 34... Rxc2 {[%clk
0:00:02.2]} 35. Rd2 {[%clk 0:01:29.8]} 35... Rxd2 {[%clk 0:00:01.9]} 36. Qxd2
{[%clk 0:01:29.9]} 36... Qc5 {[%clk 0:00:02.4]} 37. Qd3 {[%clk 0:01:29.6]} 37...
Qc3 {[%clk 0:00:02.5]} 38. Qd5 {[%clk 0:01:27]} 38... Qb2 {[%clk 0:00:02.3]} 39.
Qc4 {[%clk 0:01:14.9]} 39... Bc3 {[%clk 0:00:01.4]} 40. Bd5 {[%clk 0:01:12.1]}
40... Be1 {[%clk 0:00:01.4]} 41. Qf4 {[%clk 0:01:12.3]} 41... f5 {[%clk
0:00:01.2]} 42. Bc4 {[%clk 0:01:08]} 42... Ba5 {[%clk 0:00:00.7]} 43. Qc7+
{[%clk 0:01:02]} 43... Kh6 {[%clk 0:00:01.6]} 44. Qb8 {[%clk 0:00:57]} 44... Qg7
{[%clk 0:00:01.6]} 45. Qf4+ {[%clk 0:00:54]} 45... Kh7 {[%clk 0:00:01.8]} 46.
Qd6 {[%clk 0:00:54.2]} 46... Qa7 {[%clk 0:00:01.4]} 47. Bb5 {[%clk 0:00:52.6]}
47... Qb7+ {[%clk 0:00:01.4]} 48. Bc6 {[%clk 0:00:52.4]} 48... Qa6 {[%clk
0:00:01.3]} 49. Be8 {[%clk 0:00:52.2]} 49... Bc3 {[%clk 0:00:00.8]} 50. Qxg6+
{[%clk 0:00:51.1]} 50... Kh8 {[%clk 0:00:01.5]} 51. Qxh5+ {[%clk 0:00:50.9]}
51... Kg7 {[%clk 0:00:01.8]} 52. Qf7+ {[%clk 0:00:51]} 52... Kh6 {[%clk
0:00:01.9]} 53. Qg6# {[%clk 0:00:50.8]} 1-0

[Event "Early-Titled-Tuesday-Blitz-May-14-2024"]
[Site "Chess.com"]
[Date "2024.05.14"]
[Round "3"]
[White "David_George21"]
[Black "Moon_stone123"]
[Result "0-1"]
[WhiteElo "2372"]
[BlackElo "2620"]
[TimeControl "180+1"]
[EndTime "8:29:32 PDT"]
[Termination "Moon_stone123 won by resignation"]

1. e4 {[%clk 0:03:00.9]} 1... c5 {[%clk 0:02:57.2]} 2. Nf3 {[%clk 0:02:59.9]}
2... e6 {[%clk 0:02:55.2]} 3. d4 {[%clk 0:02:59]} 3... cxd4 {[%clk 0:02:55.2]}
4. Nxd4 {[%clk 0:02:59.9]} 4... Nc6 {[%clk 0:02:55.7]} 5. Nb5 {[%clk 0:03:00.5]}
5... d6 {[%clk 0:02:53.8]} 6. c4 {[%clk 0:03:00.7]} 6... a6 {[%clk 0:02:53.1]}
7. N5c3 {[%clk 0:03:00.2]} 7... Nf6 {[%clk 0:02:53.6]} 8. Be3 {[%clk 0:02:58.9]}
8... Be7 {[%clk 0:02:53.7]} 9. Be2 {[%clk 0:02:59]} 9... O-O {[%clk 0:02:53.5]}
10. O-O {[%clk 0:02:59.1]} 10... b6 {[%clk 0:02:53.5]} 11. Na3 {[%clk
0:02:58.5]} 11... Bb7 {[%clk 0:02:52.7]} 12. f3 {[%clk 0:02:59.1]} 12... Rc8
{[%clk 0:02:50.8]} 13. Rc1 {[%clk 0:02:58.7]} 13... Ne5 {[%clk 0:02:49.8]} 14.
f4 {[%clk 0:02:57.5]} 14... Ned7 {[%clk 0:02:49.6]} 15. Bf3 {[%clk 0:02:55.6]}
15... Qc7 {[%clk 0:02:43.1]} 16. b4 {[%clk 0:02:50.5]} 16... Qb8 {[%clk
0:02:41.7]} 17. Qe2 {[%clk 0:02:49.4]} 17... Rfe8 {[%clk 0:02:39.8]} 18. Nc2
{[%clk 0:02:47.7]} 18... Qa8 {[%clk 0:02:39.2]} 19. Bf2 {[%clk 0:02:45.7]} 19...
b5 {[%clk 0:02:21.5]} 20. e5 {[%clk 0:02:28.3]} 20... Bxf3 {[%clk 0:02:16]} 21.
gxf3 {[%clk 0:02:26.4]} 21... dxe5 {[%clk 0:02:07.8]} 22. fxe5 {[%clk
0:02:26.4]} 22... Nh5 {[%clk 0:02:07.9]} 23. c5 {[%clk 0:02:16.8]} 23... Bg5
{[%clk 0:01:58.9]} 24. Ne4 {[%clk 0:01:52.7]} 24... Bxc1 {[%clk 0:01:51.3]} 25.
Rxc1 {[%clk 0:01:45.8]} 25... Nxe5 {[%clk 0:01:48.6]} 26. Nd4 {[%clk 0:01:33.1]}
26... Red8 {[%clk 0:01:33.5]} 27. Rd1 {[%clk 0:01:24]} 27... Nf4 {[%clk
0:01:22.3]} 28. Qe3 {[%clk 0:01:23.6]} 28... Nh3+ {[%clk 0:01:20]} 29. Kg2
{[%clk 0:01:22.4]} 29... Nxf2 {[%clk 0:01:20.4]} 30. Kxf2 {[%clk 0:01:21.7]}
30... Qd5 {[%clk 0:01:16.8]} 31. Nd6 {[%clk 0:01:19.2]} 31... Rxd6 {[%clk
0:01:08.7]} 32. cxd6 {[%clk 0:01:16.3]} 32... Qxd6 {[%clk 0:01:09.6]} 33. Qe2
{[%clk 0:00:49.7]} 33... Ng6 {[%clk 0:01:03.5]} 34. Nxb5 {[%clk 0:00:39.7]}
34... Qxh2+ {[%clk 0:01:02.5]} 35. Ke3 {[%clk 0:00:36.4]} 35... Qxe2+ {[%clk
0:01:01.9]} 36. Kxe2 {[%clk 0:00:37.3]} 36... axb5 {[%clk 0:01:02.5]} 37. a4
{[%clk 0:00:33.9]} 37... bxa4 {[%clk 0:01:02.2]} 38. Ra1 {[%clk 0:00:34.6]}
38... Nf4+ {[%clk 0:01:00.1]} 39. Ke3 {[%clk 0:00:34.5]} 39... Nd5+ {[%clk
0:01:00.9]} 40. Kd4 {[%clk 0:00:34.4]} 40... Nxb4 {[%clk 0:01:00.9]} 41. Rxa4
{[%clk 0:00:35.3]} 41... Nd5 {[%clk 0:01:00.3]} 42. Ra7 {[%clk 0:00:36.2]} 42...
g6 {[%clk 0:01:00.1]} 43. Ke5 {[%clk 0:00:36.1]} 43... Kg7 {[%clk 0:01:00.1]}
44. f4 {[%clk 0:00:37]} 44... Nf6 {[%clk 0:00:51.1]} 45. Ra5 {[%clk 0:00:33.9]}
45... Rc5+ {[%clk 0:00:48.6]} 46. Rxc5 {[%clk 0:00:30.2]} 46... Nd7+ {[%clk
0:00:49.2]} 47. Kd6 {[%clk 0:00:29]} 47... Nxc5 {[%clk 0:00:50.1]} 48. Kxc5
{[%clk 0:00:29.3]} 48... Kf6 {[%clk 0:00:51]} 49. Kd4 {[%clk 0:00:28.4]} 49...
Kf5 {[%clk 0:00:51.9]} 50. Ke3 {[%clk 0:00:29.3]} 50... e5 {[%clk 0:00:52.1]}
51. fxe5 {[%clk 0:00:29.4]} 51... Kxe5 {[%clk 0:00:53]} 52. Kf3 {[%clk
0:00:30.3]} 52... h5 {[%clk 0:00:52.7]} 53. Kg3 {[%clk 0:00:30.6]} 53... g5
{[%clk 0:00:53.1]} 54. Kf3 {[%clk 0:00:30.9]} 54... f5 {[%clk 0:00:54]} 55. Kg3
{[%clk 0:00:31.8]} 55... h4+ {[%clk 0:00:54.4]} 56. Kf3 {[%clk 0:00:32.7]} 56...
g4+ {[%clk 0:00:54.1]} 57. Kf2 {[%clk 0:00:32.5]} 57... f4 {[%clk 0:00:54.6]}
58. Kg2 {[%clk 0:00:33.4]} 58... Ke4 {[%clk 0:00:55.5]} 59. Kf2 {[%clk
0:00:34.3]} 59... h3 {[%clk 0:00:55.7]} 60. Kf1 {[%clk 0:00:34.1]} 60... g3
{[%clk 0:00:56.1]} 61. Kg1 {[%clk 0:00:35]} 61... f3 {[%clk 0:00:56.7]} 62. Kf1
{[%clk 0:00:35.9]} 62... h2 {[%clk 0:00:54]} 0-1

[Event "Early-Titled-Tuesday-Blitz-May-14-2024"]
[Site "Chess.com"]
[Date "2024.05.14"]
[Round "3"]
[White "sofaceindisguise"]
[Black "GM_dmitrij"]
[Result "0-1"]
[WhiteElo "2761"]
[BlackElo "3031"]
[TimeControl "180+1"]
[EndTime "8:29:33 PDT"]
[Termination "GM_dmitrij won on time"]

1. c4 {[%clk 0:02:25]} 1... e5 {[%clk 0:02:58.8]} 2. Nc3 {[%clk 0:02:25.4]} 2...
Bb4 {[%clk 0:02:58.8]} 3. g3 {[%clk 0:02:26.1]} 3... Bxc3 {[%clk 0:02:58.8]} 4.
bxc3 {[%clk 0:02:26.7]} 4... d6 {[%clk 0:02:59.3]} 5. Bg2 {[%clk 0:02:27.3]}
5... Nc6 {[%clk 0:03:00.1]} 6. e4 {[%clk 0:02:27.8]} 6... f5 {[%clk 0:02:59.7]}
7. f3 {[%clk 0:02:26.3]} 7... Nf6 {[%clk 0:02:58.8]} 8. d3 {[%clk 0:02:26.9]}
8... O-O {[%clk 0:02:55.8]} 9. Ne2 {[%clk 0:02:26.9]} 9... fxe4 {[%clk
0:02:56.3]} 10. dxe4 {[%clk 0:02:15.9]} 10... b6 {[%clk 0:02:48.5]} 11. O-O
{[%clk 0:01:57.4]} 11... Be6 {[%clk 0:02:48]} 12. c5 {[%clk 0:01:51.4]} 12...
bxc5 {[%clk 0:02:48.9]} 13. g4 {[%clk 0:01:50.4]} 13... Na5 {[%clk 0:02:38.2]}
14. Ng3 {[%clk 0:01:49.4]} 14... Qe8 {[%clk 0:02:31]} 15. Rf2 {[%clk 0:01:48.3]}
15... Rb8 {[%clk 0:02:30.5]} 16. h4 {[%clk 0:01:47.5]} 16... Nc4 {[%clk
0:02:04.4]} 17. Bf1 {[%clk 0:01:38.6]} 17... Qf7 {[%clk 0:02:04.3]} 18. Qc2
{[%clk 0:01:21.1]} 18... Kh8 {[%clk 0:01:56.4]} 19. h5 {[%clk 0:01:15.1]} 19...
c6 {[%clk 0:01:36.4]} 20. Rh2 {[%clk 0:01:11.6]} 20... Nd7 {[%clk 0:01:32.5]}
21. Nf5 {[%clk 0:01:04.6]} 21... Bxf5 {[%clk 0:01:32.8]} 22. gxf5 {[%clk
0:01:04.3]} 22... Rg8 {[%clk 0:01:23.4]} 23. Kh1 {[%clk 0:01:00.3]} 23... Ndb6
{[%clk 0:01:20.9]} 24. a4 {[%clk 0:00:58.9]} 24... a5 {[%clk 0:01:20.9]} 25. Ra2
{[%clk 0:00:52.9]} 25... d5 {[%clk 0:01:20.7]} 26. Qf2 {[%clk 0:00:49.2]} 26...
d4 {[%clk 0:01:19.7]} 27. h6 {[%clk 0:00:46.5]} 27... g6 {[%clk 0:01:18.6]} 28.
cxd4 {[%clk 0:00:40.8]} 28... cxd4 {[%clk 0:01:17]} 29. Rc2 {[%clk 0:00:41]}
29... gxf5 {[%clk 0:01:15]} 30. exf5 {[%clk 0:00:40.4]} 30... c5 {[%clk
0:01:01.9]} 31. Bd3 {[%clk 0:00:38.8]} 31... Rbc8 {[%clk 0:00:58.3]} 32. f4
{[%clk 0:00:32.9]} 32... Qd5+ {[%clk 0:00:52.3]} 33. Rg2 {[%clk 0:00:32.5]}
33... e4 {[%clk 0:00:50.4]} 34. Qh4 {[%clk 0:00:33.1]} 34... Rcf8 {[%clk
0:00:30.7]} 35. Rxg8+ {[%clk 0:00:29.8]} 35... Qxg8 {[%clk 0:00:31.6]} 36. Bxe4
{[%clk 0:00:24.6]} 36... Nd6 {[%clk 0:00:28.3]} 37. Rg2 {[%clk 0:00:20.8]} 37...
Qf7 {[%clk 0:00:24.6]} 38. Rg7 {[%clk 0:00:19.8]} 38... Qf6 {[%clk 0:00:24.7]}
39. Qg5 {[%clk 0:00:01.2]} 39... Nxe4 {[%clk 0:00:23.3]} 0-1

[Event "Early-Titled-Tuesday-Blitz-May-14-2024"]
[Site "Chess.com"]
[Date "2024.05.14"]
[Round "3"]
[White "HanSchut"]
[Black "AnaKuchava"]
[Result "0-1"]
[WhiteElo "2388"]
[BlackElo "2204"]
[TimeControl "180+1"]
[EndTime "8:29:33 PDT"]
[Termination "AnaKuchava won by resignation"]

1. e4 {[%clk 0:03:00.9]} 1... c5 {[%clk 0:02:56.9]} 2. Nf3 {[%clk 0:02:59.4]}
2... d6 {[%clk 0:02:56.4]} 3. d4 {[%clk 0:02:59.6]} 3... cxd4 {[%clk 0:02:53.5]}
4. Nxd4 {[%clk 0:03:00.5]} 4... Nf6 {[%clk 0:02:53.8]} 5. f3 {[%clk 0:03:00.9]}
5... e5 {[%clk 0:02:51.1]} 6. Bb5+ {[%clk 0:02:58.4]} 6... Nbd7 {[%clk
0:02:40.5]} 7. Nf5 {[%clk 0:02:58]} 7... Qb6 {[%clk 0:02:36.7]} 8. c4 {[%clk
0:02:49.8]} 8... a6 {[%clk 0:02:29]} 9. Ba4 {[%clk 0:02:34.5]} 9... g6 {[%clk
0:02:16.6]} 10. Ne3 {[%clk 0:02:25.9]} 10... Bg7 {[%clk 0:02:08.6]} 11. Nc3
{[%clk 0:02:21]} 11... O-O {[%clk 0:01:52.9]} 12. Bxd7 {[%clk 0:02:01.1]} 12...
Bxd7 {[%clk 0:01:49.3]} 13. Ned5 {[%clk 0:02:01.5]} 13... Qd8 {[%clk 0:01:44.6]}
14. Bg5 {[%clk 0:01:50.1]} 14... Rc8 {[%clk 0:01:37.9]} 15. b3 {[%clk
0:01:44.9]} 15... Kh8 {[%clk 0:01:25.9]} 16. O-O {[%clk 0:01:40.2]} 16... h6
{[%clk 0:01:23.7]} 17. Be3 {[%clk 0:01:24.1]} 17... b5 {[%clk 0:00:56.4]} 18.
cxb5 {[%clk 0:01:23.8]} 18... axb5 {[%clk 0:00:50.4]} 19. Nxf6 {[%clk
0:01:20.6]} 19... Qxf6 {[%clk 0:00:46.8]} 20. Nd5 {[%clk 0:01:16.9]} 20... Qd8
{[%clk 0:00:42.8]} 21. Qd2 {[%clk 0:01:15.3]} 21... Kh7 {[%clk 0:00:41.7]} 22.
a4 {[%clk 0:01:08.4]} 22... bxa4 {[%clk 0:00:37]} 23. bxa4 {[%clk 0:01:09.3]}
23... f5 {[%clk 0:00:37.2]} 24. a5 {[%clk 0:01:08]} 24... Bb5 {[%clk 0:00:29.3]}
25. Rfc1 {[%clk 0:00:57.6]} 25... fxe4 {[%clk 0:00:26.2]} 26. fxe4 {[%clk
0:00:56.4]} 26... Qh4 {[%clk 0:00:25.7]} 27. Nc3 {[%clk 0:00:39.9]} 27... Ba6
{[%clk 0:00:24.3]} 28. Bf2 {[%clk 0:00:34.2]} 28... Qf6 {[%clk 0:00:22.5]} 29.
Nd5 {[%clk 0:00:30.8]} 29... Qf7 {[%clk 0:00:19]} 30. Rab1 {[%clk 0:00:29.5]}
30... Rxc1+ {[%clk 0:00:14.8]} 31. Rxc1 {[%clk 0:00:29.2]} 31... Rb8 {[%clk
0:00:09.7]} 32. h3 {[%clk 0:00:27.7]} 32... Qb7 {[%clk 0:00:06.2]} 33. Rc7
{[%clk 0:00:27.3]} 33... Qb1+ {[%clk 0:00:06]} 34. Kh2 {[%clk 0:00:26.8]} 34...
Rf8 {[%clk 0:00:03.6]} 35. Ne3 {[%clk 0:00:13.3]} 35... Qxe4 {[%clk 0:00:02.7]}
36. Ng4 {[%clk 0:00:13.3]} 36... Qf4+ {[%clk 0:00:02.9]} 37. Bg3 {[%clk
0:00:12.7]} 37... Qxd2 {[%clk 0:00:02.9]} 0-1